[Event "Titled Tuesday Blitz February 07 Late 2023"]
[White "Lopez Del Alamo, Antonio"]
[Black "Reprintsev, Alexander"]
[WhiteFideId "2227339"]
[BlackFideId "14100541"]
[WhiteElo "2280"]
[BlackElo "2253"]
[Result "1/2-1/2"]
[Round "02"]
[TimeControl "180+2"]
[Date "2023.02.07"]
[WhiteClock "0:00:19"]
[BlackClock "0:00:58"]

1. e4 {[%clk 0:03:00]}  d5 {[%clk 0:03:00]} 2. exd5 {[%clk 0:03:00]}  Qxd5 {[%clk 0:02:59]} 3. Nc3 {[%clk 0:03:00]}  Qa5 {[%clk 0:02:59]} 4. d4 {[%clk 0:03:01]}  Nf6 {[%clk 0:02:59]} 5. Nf3 {[%clk 0:03:01]}  Nc6 {[%clk 0:02:59]} 6. Bb5 {[%clk 0:02:59]}  Ne4 {[%clk 0:02:59]} 7. Bd2 {[%clk 0:02:54]}  Nxc3 {[%clk 0:02:57]} 8. Bxc6+ {[%clk 0:02:54]}  bxc6 {[%clk 0:02:58]} 9. Bxc3 {[%clk 0:02:54]}  Qd5 {[%clk 0:02:58]} 10. O-O {[%clk 0:02:53]}  Bg4 {[%clk 0:02:58]} 11. h3 {[%clk 0:02:50]}  Bxf3 {[%clk 0:02:58]} 12. Qxf3 {[%clk 0:02:51]}  Qxf3 {[%clk 0:02:58]} 13. gxf3 {[%clk 0:02:52]}  e6 {[%clk 0:02:59]} 14. Rfe1 {[%clk 0:02:43]}  Kd7 {[%clk 0:02:58]} 15. Rad1 {[%clk 0:02:40]}  Bd6 {[%clk 0:02:54]} 16. b3 {[%clk 0:02:38]}  Rhb8 {[%clk 0:02:51]} 17. Bb2 {[%clk 0:02:36]}  a5 {[%clk 0:02:51]} 18. a4 {[%clk 0:02:35]}  Ke7 {[%clk 0:02:48]} 19. Re4 {[%clk 0:02:33]}  Rb4 {[%clk 0:02:39]} 20. Re2 {[%clk 0:02:23]}  Rd8 {[%clk 0:02:31]} 21. Rd3 {[%clk 0:02:18]}  Rb6 {[%clk 0:02:25]} 22. Bc3 {[%clk 0:02:15]}  Bb4 {[%clk 0:02:22]} 23. Bb2 {[%clk 0:02:12]}  Rd5 {[%clk 0:02:21]} 24. c3 {[%clk 0:02:09]}  Bd6 {[%clk 0:02:21]} 25. c4 {[%clk 0:02:09]}  Rg5+ {[%clk 0:02:21]} 26. Kf1 {[%clk 0:02:06]}  Rb8 {[%clk 0:02:17]} 27. Bc1 {[%clk 0:01:50]}  Rh5 {[%clk 0:02:16]} 28. Kg2 {[%clk 0:01:49]}  c5 {[%clk 0:02:12]} 29. d5 {[%clk 0:01:47]}  e5 {[%clk 0:02:09]} 30. Bd2 {[%clk 0:01:42]}  Ra8 {[%clk 0:02:06]} 31. f4 {[%clk 0:01:39]}  f6 {[%clk 0:02:06]} 32. Bc3 {[%clk 0:01:34]}  Kd7 {[%clk 0:02:03]} 33. fxe5 {[%clk 0:01:33]}  Bxe5 {[%clk 0:02:03]} 34. Bxe5 {[%clk 0:01:28]}  fxe5 {[%clk 0:02:03]} 35. Rg3 {[%clk 0:01:25]}  g6 {[%clk 0:02:03]} 36. Rge3 {[%clk 0:01:17]}  Kd6 {[%clk 0:02:02]} 37. f4 {[%clk 0:01:13]}  exf4 {[%clk 0:01:44]} 38. Re7 {[%clk 0:01:08]}  f3+ {[%clk 0:01:44]} 39. Kxf3 {[%clk 0:01:06]}  Rf8+ {[%clk 0:01:45]} 40. Kg4 {[%clk 0:01:04]}  Rf6 {[%clk 0:01:44]} 41. R2e6+ {[%clk 0:01:00]}  Rxe6 {[%clk 0:01:44]} 42. Rxe6+ {[%clk 0:01:01]}  Kd7 {[%clk 0:01:44]} 43. Ra6 {[%clk 0:01:00]}  Re5 {[%clk 0:01:43]} 44. Rxa5 {[%clk 0:01:00]}  Re3 {[%clk 0:01:43]} 45. Rb5 {[%clk 0:00:59]}  h6 {[%clk 0:01:41]} 46. a5 {[%clk 0:00:59]}  Kd6 {[%clk 0:01:28]} 47. a6 {[%clk 0:00:58]}  Re4+ {[%clk 0:01:28]} 48. Kf3 {[%clk 0:00:57]}  Re8 {[%clk 0:01:29]} 49. a7 {[%clk 0:00:53]}  Ra8 {[%clk 0:01:29]} 50. Ra5 {[%clk 0:00:54]}  Ke5 {[%clk 0:01:20]} 51. Ke3 {[%clk 0:00:52]}  g5 {[%clk 0:01:20]} 52. Ra6 {[%clk 0:00:51]}  h5 {[%clk 0:01:20]} 53. Ra5 {[%clk 0:00:49]}  g4 {[%clk 0:01:18]} 54. hxg4 {[%clk 0:00:49]}  hxg4 {[%clk 0:01:19]} 55. Ra6 {[%clk 0:00:49]}  Kf5 {[%clk 0:01:14]} 56. Kf2 {[%clk 0:00:42]}  Kf4 {[%clk 0:01:15]} 57. Kg2 {[%clk 0:00:40]}  g3 {[%clk 0:01:13]} 58. Ra5 {[%clk 0:00:39]}  Kg4 {[%clk 0:01:11]} 59. Ra6 {[%clk 0:00:39]}  Kf4 {[%clk 0:01:11]} 60. Rf6+ {[%clk 0:00:39]}  Ke5 {[%clk 0:01:07]} 61. Re6+ {[%clk 0:00:37]}  Kf4 {[%clk 0:01:04]} 62. Ra6 {[%clk 0:00:34]}  Kg4 {[%clk 0:01:04]} 63. Rg6+ {[%clk 0:00:26]}  Kf5 {[%clk 0:01:04]} 64. Rg7 {[%clk 0:00:25]}  Rxa7 {[%clk 0:01:02]} 65. Kxg3 {[%clk 0:00:23]}  Ke5 {[%clk 0:01:01]} 66. Rd7 {[%clk 0:00:22]}  Ra3 {[%clk 0:00:58]} 67. Rxc7 {[%clk 0:00:21]}  Rxb3+ {[%clk 0:00:58]} 68. Kg4 {[%clk 0:00:22]}  Kd4 {[%clk 0:00:58]} 69. d6 {[%clk 0:00:22]}  Kxc4 {[%clk 0:00:58]} 70. d7 {[%clk 0:00:20]}  Rd3 {[%clk 0:00:59]} 71. Kf5 {[%clk 0:00:20]}  Kb3 {[%clk 0:00:58]} 72. Ke6 {[%clk 0:00:20]}  c4 {[%clk 0:00:59]} 73. Rb7+ {[%clk 0:00:20]}  Ka3 {[%clk 0:00:58]} 74. Rc7 {[%clk 0:00:19]}  Kb3 {[%clk 0:00:58]} 75. Ke7 {[%clk 0:00:19]}  c3 {[%clk 0:00:58]} 76. d8=Q {[%clk 0:00:17]}  Rxd8 {[%clk 0:00:58]} 77. Kxd8 {[%clk 0:00:18]}  c2 {[%clk 0:00:58]} 78. Rxc2 {[%clk 0:00:19]}  Kxc2 {[%clk 0:00:58]} 1/2-1/2


[Site "https://www.chess.com"]

[Event "Titled Tuesday Blitz February 07 Late 2023"]
[White "Ozdemir, Serhan Berat"]
[Black "Van Dael, Siem"]
[WhiteFideId "6374611"]
[BlackFideId "1049771"]
[WhiteElo "2223"]
[BlackElo "2319"]
[Result "0-1"]
[Round "02"]
[TimeControl "180+2"]
[Date "2023.02.07"]
[WhiteClock "0:00:04"]
[BlackClock "0:00:09"]

1. e4 {[%clk 0:03:00]}  c5 {[%clk 0:01:59]} 2. Nf3 {[%clk 0:02:59]}  d6 {[%clk 0:01:51]} 3. d4 {[%clk 0:02:59]}  cxd4 {[%clk 0:01:49]} 4. Nxd4 {[%clk 0:02:59]}  Nf6 {[%clk 0:01:44]} 5. Nc3 {[%clk 0:02:59]}  a6 {[%clk 0:01:44]} 6. Bg5 {[%clk 0:02:59]}  Nbd7 {[%clk 0:01:43]} 7. f4 {[%clk 0:02:43]}  g6 {[%clk 0:01:28]} 8. Qe2 {[%clk 0:02:41]}  Bg7 {[%clk 0:01:24]} 9. O-O-O {[%clk 0:02:36]}  O-O {[%clk 0:01:23]} 10. e5 {[%clk 0:02:29]}  dxe5 {[%clk 0:01:24]} 11. fxe5 {[%clk 0:02:30]}  Qa5 {[%clk 0:01:18]} 12. Bxf6 {[%clk 0:02:01]}  exf6 {[%clk 0:01:06]} 13. e6 {[%clk 0:02:01]}  Ne5 {[%clk 0:01:03]} 14. Nb3 {[%clk 0:01:50]}  Qb6 {[%clk 0:00:40]} 15. e7 {[%clk 0:01:44]}  Re8 {[%clk 0:00:36]} 16. Nd5 {[%clk 0:01:45]}  Qc6 {[%clk 0:00:27]} 17. Na5 {[%clk 0:01:05]}  Bg4 {[%clk 0:00:15]} 18. Nxc6 {[%clk 0:00:57]}  Bxe2 {[%clk 0:00:15]} 19. Bxe2 {[%clk 0:00:57]}  Nxc6 {[%clk 0:00:09]} 20. Nc7 {[%clk 0:00:57]}  Rxe7 {[%clk 0:00:10]} 21. Nxa8 {[%clk 0:00:56]}  Rxe2 {[%clk 0:00:10]} 22. Rhg1 {[%clk 0:00:44]}  Bh6+ {[%clk 0:00:10]} 23. Kb1 {[%clk 0:00:44]}  Kg7 {[%clk 0:00:06]} 24. Rde1 {[%clk 0:00:37]}  Rf2 {[%clk 0:00:05]} 25. Nb6 {[%clk 0:00:20]}  Nd4 {[%clk 0:00:06]} 26. c3 {[%clk 0:00:17]}  Nf5 {[%clk 0:00:03]} 27. g4 {[%clk 0:00:15]}  Nh4 {[%clk 0:00:02]} 28. Ref1 {[%clk 0:00:03]}  Rxh2 {[%clk 0:00:03]} 29. Rh1 {[%clk 0:00:03]}  Rxh1 {[%clk 0:00:03]} 30. Rxh1 {[%clk 0:00:04]}  Nf3 {[%clk 0:00:04]} 31. Nd5 {[%clk 0:00:02]}  Ne5 {[%clk 0:00:04]} 32. Rd1 {[%clk 0:00:02]}  Bg5 {[%clk 0:00:04]} 33. b4 {[%clk 0:00:02]}  Nxg4 {[%clk 0:00:05]} 34. c4 {[%clk 0:00:02]}  Nf2 {[%clk 0:00:05]} 35. Rd4 {[%clk 0:00:01]}  f5 {[%clk 0:00:06]} 36. c5 {[%clk 0:00:01]}  Ne4 {[%clk 0:00:06]} 37. c6 {[%clk 0:00:01]}  bxc6 {[%clk 0:00:07]} 38. Ne7 {[%clk 0:00:02]}  Bxe7 {[%clk 0:00:07]} 39. Rc4 {[%clk 0:00:02]}  c5 {[%clk 0:00:07]} 40. bxc5 {[%clk 0:00:02]}  Bxc5 {[%clk 0:00:07]} 41. Ra4 {[%clk 0:00:02]}  Be3 {[%clk 0:00:07]} 42. Rxa6 {[%clk 0:00:03]}  f4 {[%clk 0:00:07]} 43. Ra3 {[%clk 0:00:03]}  f5 {[%clk 0:00:07]} 44. Rb3 {[%clk 0:00:03]}  Nd2+ {[%clk 0:00:08]} 45. Kc2 {[%clk 0:00:03]}  Nxb3 {[%clk 0:00:09]} 46. Kxb3 {[%clk 0:00:04]}  f3 {[%clk 0:00:09]} 0-1


[Site "https://www.chess.com"]

[Event "Titled Tuesday Blitz February 07 Late 2023"]
[White "Slade, Theodore"]
[Black "Georg, Heinz"]
[WhiteFideId "426547"]
[BlackFideId "4607295"]
[WhiteElo "1995"]
[BlackElo "2107"]
[Result "0-1"]
[Round "02"]
[TimeControl "180+2"]
[Date "2023.02.07"]
[WhiteClock "0:00:59"]
[BlackClock "0:01:20"]

1. d4 {[%clk 0:03:00]}  f5 {[%clk 0:02:59]} 2. g3 {[%clk 0:03:00]}  Nf6 {[%clk 0:02:58]} 3. Bg2 {[%clk 0:03:01]}  g6 {[%clk 0:02:58]} 4. Nf3 {[%clk 0:03:01]}  Bg7 {[%clk 0:02:58]} 5. O-O {[%clk 0:03:02]}  O-O {[%clk 0:02:58]} 6. c4 {[%clk 0:03:03]}  d6 {[%clk 0:02:57]} 7. Nc3 {[%clk 0:03:03]}  Qe8 {[%clk 0:02:57]} 8. d5 {[%clk 0:02:59]}  a5 {[%clk 0:02:57]} 9. Qc2 {[%clk 0:02:55]}  Na6 {[%clk 0:02:56]} 10. e4 {[%clk 0:02:53]}  fxe4 {[%clk 0:02:55]} 11. Nxe4 {[%clk 0:02:53]}  Nxe4 {[%clk 0:02:55]} 12. Qxe4 {[%clk 0:02:54]}  Nc5 {[%clk 0:02:55]} 13. Qe2 {[%clk 0:02:45]}  e5 {[%clk 0:02:50]} 14. Be3 {[%clk 0:02:32]}  b6 {[%clk 0:02:47]} 15. Ng5 {[%clk 0:02:23]}  Kh8 {[%clk 0:02:21]} 16. b3 {[%clk 0:02:16]}  e4 {[%clk 0:02:17]} 17. Rad1 {[%clk 0:02:10]}  h6 {[%clk 0:02:17]} 18. Nh3 {[%clk 0:02:05]}  Bd7 {[%clk 0:02:10]} 19. Bxc5 {[%clk 0:02:04]}  bxc5 {[%clk 0:02:09]} 20. Nf4 {[%clk 0:01:58]}  g5 {[%clk 0:02:04]} 21. Nh5 {[%clk 0:01:50]}  Bd4 {[%clk 0:02:04]} 22. Bxe4 {[%clk 0:01:48]}  Bh3 {[%clk 0:02:00]} 23. Rfe1 {[%clk 0:01:45]}  Rxf2 {[%clk 0:01:59]} 24. Qxf2 {[%clk 0:01:41]}  Bxf2+ {[%clk 0:01:58]} 25. Kxf2 {[%clk 0:01:42]}  Qxh5 {[%clk 0:01:57]} 26. Kg1 {[%clk 0:01:34]}  Re8 {[%clk 0:01:54]} 27. Bd3 {[%clk 0:01:20]}  Rxe1+ {[%clk 0:01:52]} 28. Rxe1 {[%clk 0:01:21]}  Qf7 {[%clk 0:01:47]} 29. Re3 {[%clk 0:01:10]}  Kg7 {[%clk 0:01:36]} 30. Be2 {[%clk 0:01:10]}  Qf6 {[%clk 0:01:33]} 31. g4 {[%clk 0:01:04]}  Qd4 {[%clk 0:01:32]} 32. Kf2 {[%clk 0:01:04]}  Bxg4 {[%clk 0:01:31]} 33. Bxg4 {[%clk 0:01:03]}  Qxg4 {[%clk 0:01:31]} 34. Re7+ {[%clk 0:01:04]}  Kf6 {[%clk 0:01:31]} 35. Rxc7 {[%clk 0:01:02]}  Qf4+ {[%clk 0:01:29]} 36. Kg2 {[%clk 0:01:03]}  Qd2+ {[%clk 0:01:28]} 37. Kg3 {[%clk 0:01:03]}  Qxa2 {[%clk 0:01:29]} 38. Rd7 {[%clk 0:01:01]}  Ke5 {[%clk 0:01:29]} 39. Re7+ {[%clk 0:01:00]}  Kf5 {[%clk 0:01:25]} 40. Re6 {[%clk 0:01:01]}  Qxb3+ {[%clk 0:01:24]} 41. Kg2 {[%clk 0:01:02]}  Qxc4 {[%clk 0:01:24]} 42. Rxd6 {[%clk 0:01:02]}  Qf4 {[%clk 0:01:22]} 43. Rd8 {[%clk 0:01:01]}  c4 {[%clk 0:01:20]} 44. Rf8+ {[%clk 0:01:00]}  Ke5 {[%clk 0:01:20]} 45. Rxf4 {[%clk 0:00:59]}  gxf4 {[%clk 0:01:20]} 0-1


[Site "https://www.chess.com"]

[Event "Titled Tuesday Blitz February 07 Late 2023"]
[White "Osmonbekov, Talaibek"]
[Black "Sivakumar, Shaaketh"]
[WhiteFideId "2017253"]
[BlackFideId "30940176"]
[WhiteElo "2137"]
[BlackElo "2337"]
[Result "0-1"]
[Round "02"]
[TimeControl "180+2"]
[Date "2023.02.07"]
[WhiteClock "0:00:26"]
[BlackClock "0:02:01"]

1. d4 {[%clk 0:03:00]}  e6 {[%clk 0:02:41]} 2. Bf4 {[%clk 0:03:01]}  b6 {[%clk 0:02:41]} 3. Nc3 {[%clk 0:03:01]}  Bb7 {[%clk 0:02:42]} 4. e4 {[%clk 0:03:01]}  Bb4 {[%clk 0:02:43]} 5. Bd3 {[%clk 0:03:01]}  Nf6 {[%clk 0:02:43]} 6. Qe2 {[%clk 0:03:01]}  c5 {[%clk 0:02:42]} 7. d5 {[%clk 0:02:58]}  O-O {[%clk 0:02:42]} 8. O-O-O {[%clk 0:02:40]}  Bxc3 {[%clk 0:02:40]} 9. bxc3 {[%clk 0:02:38]}  exd5 {[%clk 0:02:41]} 10. exd5 {[%clk 0:02:32]}  Bxd5 {[%clk 0:02:39]} 11. Bg5 {[%clk 0:02:20]}  Bxg2 {[%clk 0:02:37]} 12. Nf3 {[%clk 0:02:09]}  Bxh1 {[%clk 0:02:30]} 13. Rxh1 {[%clk 0:02:08]}  h6 {[%clk 0:02:31]} 14. Bh4 {[%clk 0:02:06]}  Qe8 {[%clk 0:02:29]} 15. Qd2 {[%clk 0:01:58]}  Ne4 {[%clk 0:02:29]} 16. Qf4 {[%clk 0:01:50]}  Nxc3 {[%clk 0:02:26]} 17. Rg1 {[%clk 0:01:44]}  Ne2+ {[%clk 0:02:25]} 18. Bxe2 {[%clk 0:01:43]}  Qxe2 {[%clk 0:02:26]} 19. Qxh6 {[%clk 0:01:40]}  Qf1+ {[%clk 0:02:26]} 20. Rxf1 {[%clk 0:01:36]}  gxh6 {[%clk 0:02:23]} 21. Bf6 {[%clk 0:01:26]}  Kh7 {[%clk 0:02:22]} 22. Rd1 {[%clk 0:01:20]}  Re8 {[%clk 0:02:17]} 23. Be5 {[%clk 0:01:08]}  Nc6 {[%clk 0:02:15]} 24. Bg3 {[%clk 0:01:03]}  Rad8 {[%clk 0:02:14]} 25. Bc7 {[%clk 0:01:03]}  Rc8 {[%clk 0:02:13]} 26. Rxd7 {[%clk 0:01:03]}  Re7 {[%clk 0:02:14]} 27. Rxe7 {[%clk 0:00:58]}  Nxe7 {[%clk 0:02:15]} 28. Be5 {[%clk 0:00:55]}  Ng6 {[%clk 0:02:14]} 29. Bf6 {[%clk 0:00:53]}  Rc6 {[%clk 0:02:12]} 30. Bc3 {[%clk 0:00:51]}  Re6 {[%clk 0:02:03]} 31. Kd2 {[%clk 0:00:51]}  Nf4 {[%clk 0:02:00]} 32. Ne5 {[%clk 0:00:46]}  f6 {[%clk 0:01:59]} 33. Ng4 {[%clk 0:00:45]}  Re2+ {[%clk 0:01:59]} 34. Kd1 {[%clk 0:00:42]}  f5 {[%clk 0:02:00]} 35. Nf6+ {[%clk 0:00:39]}  Kg6 {[%clk 0:02:01]} 36. Nd5 {[%clk 0:00:28]}  Nxd5 {[%clk 0:01:59]} 37. Kxe2 {[%clk 0:00:26]}  Nxc3+ {[%clk 0:02:00]} 38. Kd3 {[%clk 0:00:26]}  Nxa2 {[%clk 0:02:01]} 0-1


[Site "https://www.chess.com"]

[Event "Titled Tuesday Blitz February 07 Late 2023"]
[White "Marczuk, Dominik"]
[Black "Fajdetic, Hrvoje"]
[WhiteFideId "1111264"]
[BlackFideId "14501945"]
[WhiteElo "2253"]
[BlackElo "2151"]
[Result "0-1"]
[Round "02"]
[TimeControl "180+2"]
[Date "2023.02.07"]
[WhiteClock "0:00:02"]
[BlackClock "0:00:54"]

1. e4 {[%clk 0:03:00]}  c5 {[%clk 0:02:57]} 2. Nf3 {[%clk 0:03:00]}  a6 {[%clk 0:02:57]} 3. c3 {[%clk 0:02:58]}  d5 {[%clk 0:02:57]} 4. exd5 {[%clk 0:02:58]}  Qxd5 {[%clk 0:02:58]} 5. d4 {[%clk 0:02:59]}  Bg4 {[%clk 0:02:58]} 6. Be2 {[%clk 0:02:58]}  e6 {[%clk 0:02:58]} 7. O-O {[%clk 0:02:58]}  Nf6 {[%clk 0:02:56]} 8. Be3 {[%clk 0:02:55]}  Nbd7 {[%clk 0:02:56]} 9. h3 {[%clk 0:02:45]}  Bh5 {[%clk 0:02:55]} 10. c4 {[%clk 0:02:30]}  Qd6 {[%clk 0:02:46]} 11. Nc3 {[%clk 0:02:24]}  cxd4 {[%clk 0:02:35]} 12. Nxd4 {[%clk 0:02:17]}  Bxe2 {[%clk 0:02:36]} 13. Qxe2 {[%clk 0:02:18]}  Be7 {[%clk 0:02:32]} 14. Rfd1 {[%clk 0:02:17]}  Qc7 {[%clk 0:02:32]} 15. Rac1 {[%clk 0:01:55]}  O-O {[%clk 0:02:31]} 16. b3 {[%clk 0:01:16]}  Bc5 {[%clk 0:02:27]} 17. Nf3 {[%clk 0:01:12]}  Rad8 {[%clk 0:02:24]} 18. Bxc5 {[%clk 0:01:09]}  Nxc5 {[%clk 0:02:24]} 19. Ne5 {[%clk 0:01:07]}  Rxd1+ {[%clk 0:02:21]} 20. Rxd1 {[%clk 0:01:07]}  Rd8 {[%clk 0:02:20]} 21. Rxd8+ {[%clk 0:00:58]}  Qxd8 {[%clk 0:02:21]} 22. Qd1 {[%clk 0:00:55]}  Qxd1+ {[%clk 0:02:18]} 23. Nxd1 {[%clk 0:00:56]}  Nfd7 {[%clk 0:02:15]} 24. Nxd7 {[%clk 0:00:54]}  Nxd7 {[%clk 0:02:15]} 25. f3 {[%clk 0:00:54]}  Kf8 {[%clk 0:02:12]} 26. Kf2 {[%clk 0:00:54]}  Ke7 {[%clk 0:02:12]} 27. Ke3 {[%clk 0:00:54]}  Kd6 {[%clk 0:02:13]} 28. b4 {[%clk 0:00:48]}  b6 {[%clk 0:02:11]} 29. Nc3 {[%clk 0:00:44]}  f5 {[%clk 0:02:07]} 30. f4 {[%clk 0:00:32]}  h6 {[%clk 0:02:05]} 31. h4 {[%clk 0:00:29]}  e5 {[%clk 0:01:57]} 32. fxe5+ {[%clk 0:00:25]}  Kxe5 {[%clk 0:01:58]} 33. a4 {[%clk 0:00:21]}  g5 {[%clk 0:01:57]} 34. hxg5 {[%clk 0:00:20]}  hxg5 {[%clk 0:01:57]} 35. a5 {[%clk 0:00:13]}  f4+ {[%clk 0:01:43]} 36. Kd3 {[%clk 0:00:12]}  bxa5 {[%clk 0:01:42]} 37. bxa5 {[%clk 0:00:13]}  Nc5+ {[%clk 0:01:42]} 38. Ke2 {[%clk 0:00:08]}  Kd4 {[%clk 0:01:30]} 39. Nd5 {[%clk 0:00:08]}  Kxc4 {[%clk 0:01:28]} 40. Nf6 {[%clk 0:00:07]}  Kb5 {[%clk 0:01:24]} 41. Kf3 {[%clk 0:00:02]}  Kxa5 {[%clk 0:01:20]} 42. Kg4 {[%clk 0:00:02]}  Ne6 {[%clk 0:01:20]} 43. Kf5 {[%clk 0:00:02]}  Nd4+ {[%clk 0:01:16]} 44. Kxg5 {[%clk 0:00:02]}  Ne2 {[%clk 0:01:17]} 45. Nd5 {[%clk 0:00:02]}  Kb5 {[%clk 0:00:54]} 0-1


[Site "https://www.chess.com"]

[Event "Titled Tuesday Blitz February 07 Late 2023"]
[White "Kokoszczynski, Jan"]
[Black "Alexikov, Alexander"]
[WhiteFideId "1174460"]
[BlackFideId "14103958"]
[WhiteElo "2247"]
[BlackElo "2209"]
[Result "1-0"]
[Round "02"]
[TimeControl "180+2"]
[Date "2023.02.07"]
[WhiteClock "0:00:29"]
[BlackClock "0:00:09"]

1. e4 {[%clk 0:03:00]}  c5 {[%clk 0:02:58]} 2. Nf3 {[%clk 0:02:59]}  d6 {[%clk 0:02:58]} 3. d4 {[%clk 0:02:56]}  cxd4 {[%clk 0:02:57]} 4. Qxd4 {[%clk 0:02:57]}  a6 {[%clk 0:02:54]} 5. c4 {[%clk 0:02:54]}  Nc6 {[%clk 0:02:52]} 6. Qe3 {[%clk 0:02:53]}  Nf6 {[%clk 0:02:52]} 7. h3 {[%clk 0:02:53]}  g6 {[%clk 0:02:52]} 8. Be2 {[%clk 0:02:48]}  Bg7 {[%clk 0:02:51]} 9. O-O {[%clk 0:02:48]}  O-O {[%clk 0:02:51]} 10. Rd1 {[%clk 0:02:47]}  Qa5 {[%clk 0:02:34]} 11. Nc3 {[%clk 0:02:44]}  Be6 {[%clk 0:02:23]} 12. Nd5 {[%clk 0:02:27]}  Rac8 {[%clk 0:01:58]} 13. Bd2 {[%clk 0:02:19]}  Qc5 {[%clk 0:01:55]} 14. Qd3 {[%clk 0:01:27]}  Bxd5 {[%clk 0:01:03]} 15. exd5 {[%clk 0:01:18]}  Nb8 {[%clk 0:00:55]} 16. Be3 {[%clk 0:01:04]}  Qc7 {[%clk 0:00:54]} 17. Rac1 {[%clk 0:01:02]}  Nbd7 {[%clk 0:00:49]} 18. b4 {[%clk 0:00:52]}  b6 {[%clk 0:00:47]} 19. Nd4 {[%clk 0:00:47]}  Ne5 {[%clk 0:00:43]} 20. Qb3 {[%clk 0:00:47]}  a5 {[%clk 0:00:41]} 21. a3 {[%clk 0:00:47]}  axb4 {[%clk 0:00:40]} 22. axb4 {[%clk 0:00:48]}  Qb7 {[%clk 0:00:37]} 23. f4 {[%clk 0:00:46]}  Ned7 {[%clk 0:00:36]} 24. Nc6 {[%clk 0:00:47]}  Rfe8 {[%clk 0:00:35]} 25. Ra1 {[%clk 0:00:44]}  Ra8 {[%clk 0:00:32]} 26. Rxa8 {[%clk 0:00:44]}  Qxa8 {[%clk 0:00:30]} 27. Bd4 {[%clk 0:00:38]}  e6 {[%clk 0:00:27]} 28. Bf3 {[%clk 0:00:35]}  exd5 {[%clk 0:00:25]} 29. cxd5 {[%clk 0:00:36]}  b5 {[%clk 0:00:23]} 30. Ra1 {[%clk 0:00:32]}  Qc8 {[%clk 0:00:21]} 31. Qd3 {[%clk 0:00:30]}  Kf8 {[%clk 0:00:09]} 32. Qxb5 {[%clk 0:00:29]} 1-0


[Site "https://www.chess.com"]

[Event "Titled Tuesday Blitz February 07 Late 2023"]
[White "Schekachikhin, Maksim"]
[Black "Gardezi, Arsal"]
[WhiteFideId "24177830"]
[BlackFideId "30949521"]
[WhiteElo "2371"]
[BlackElo "2093"]
[Result "1-0"]
[Round "02"]
[TimeControl "180+2"]
[Date "2023.02.07"]
[WhiteClock "0:00:36"]
[BlackClock "0:00:03"]

1. b3 {[%clk 0:03:00]}  d5 {[%clk 0:02:55]} 2. Bb2 {[%clk 0:03:01]}  c5 {[%clk 0:02:55]} 3. Nf3 {[%clk 0:03:00]}  Nc6 {[%clk 0:02:56]} 4. e3 {[%clk 0:03:00]}  f6 {[%clk 0:02:51]} 5. Bb5 {[%clk 0:02:59]}  e5 {[%clk 0:02:43]} 6. O-O {[%clk 0:02:56]}  Be6 {[%clk 0:02:41]} 7. d4 {[%clk 0:02:55]}  e4 {[%clk 0:02:37]} 8. Nfd2 {[%clk 0:02:55]}  f5 {[%clk 0:02:17]} 9. c4 {[%clk 0:02:54]}  Nf6 {[%clk 0:02:16]} 10. Nc3 {[%clk 0:02:51]}  a6 {[%clk 0:02:14]} 11. cxd5 {[%clk 0:02:46]}  Bxd5 {[%clk 0:01:57]} 12. Nxd5 {[%clk 0:02:45]}  Qxd5 {[%clk 0:01:56]} 13. Bc4 {[%clk 0:02:27]}  Qd7 {[%clk 0:01:54]} 14. d5 {[%clk 0:02:21]}  Nxd5 {[%clk 0:01:45]} 15. Nxe4 {[%clk 0:02:15]}  O-O-O {[%clk 0:01:28]} 16. Ng5 {[%clk 0:02:04]}  h6 {[%clk 0:01:16]} 17. Qxd5 {[%clk 0:01:46]}  Qxd5 {[%clk 0:00:40]} 18. Bxd5 {[%clk 0:01:47]}  Rxd5 {[%clk 0:00:41]} 19. Ne6 {[%clk 0:01:45]}  Rd7 {[%clk 0:00:33]} 20. Rad1 {[%clk 0:01:41]}  Bd6 {[%clk 0:00:28]} 21. Nxg7 {[%clk 0:01:35]}  Rg8 {[%clk 0:00:22]} 22. Nxf5 {[%clk 0:01:34]}  Be5 {[%clk 0:00:23]} 23. Bxe5 {[%clk 0:01:24]}  Nxe5 {[%clk 0:00:21]} 24. Rxd7 {[%clk 0:01:20]}  Kxd7 {[%clk 0:00:20]} 25. Rd1+ {[%clk 0:01:20]}  Ke6 {[%clk 0:00:20]} 26. e4 {[%clk 0:01:04]}  h5 {[%clk 0:00:17]} 27. Kf1 {[%clk 0:01:04]}  Nf7 {[%clk 0:00:15]} 28. f3 {[%clk 0:00:55]}  Rc8 {[%clk 0:00:12]} 29. Ne3 {[%clk 0:00:51]}  Nd6 {[%clk 0:00:10]} 30. Nd5 {[%clk 0:00:49]}  Nb5 {[%clk 0:00:10]} 31. Nf4+ {[%clk 0:00:48]}  Ke5 {[%clk 0:00:10]} 32. Nxh5 {[%clk 0:00:45]}  Nc3 {[%clk 0:00:07]} 33. Rd2 {[%clk 0:00:44]}  Rh8 {[%clk 0:00:06]} 34. g4 {[%clk 0:00:44]}  b5 {[%clk 0:00:04]} 35. Ng3 {[%clk 0:00:39]}  Rf8 {[%clk 0:00:04]} 36. Nf5 {[%clk 0:00:39]}  Rh8 {[%clk 0:00:04]} 37. h4 {[%clk 0:00:38]}  c4 {[%clk 0:00:03]} 38. bxc4 {[%clk 0:00:38]}  bxc4 {[%clk 0:00:03]} 39. Rc2 {[%clk 0:00:36]} 1-0


[Site "https://www.chess.com"]